[Event "Turkish Club Cup 2019"]
[Site "Konya"]
[Date "2019.07.18"]
[Round "4"]
[White "Sahbaz, Bartu"]
[Black "Gonullu, Muhammed Sinan"]
[Result "0-1"]
[ECO "B13"]
[WhiteElo "1237"]
[BlackElo "1823"]
[Annotator "NA RC"]
[PlyCount "86"]
[EventDate "2019.07.16"]
[EventType "team-tourn"]
[EventCountry "TUR"]
[SourceTitle "playchess.com"]
[Source "ChessBase"]
[SourceQuality "1"]
[TimeControl "5400+30"]

1. d4 {[%emt 0:00:30]} g6 {[%emt 0:00:30]} 2. Nf3 {[%emt 0:00:00]} Bg7 {[%emt 0:00:30]} 3. Bf4 {[%emt 0:00:00]} c5 {[%emt 0:01:30]} 4. e3 {[%emt 0:00:30]} cxd4 {[%emt 0:01:30]} 5. exd4 {[%emt 0:00:30]} Nf6 {[%emt 0:00:00]} 6. Nbd2 {[%emt 0:00:30]} O-O {[%emt 0:00:00]} 7. Bd3 {[%emt 0:00:30]} d5 {[%emt 0:00:30]} 8. O-O {[%emt 0:00:30]} Nc6 {[%emt 0:00:30]} 9. c3 {[%emt 0:00:30]} Nh5 {[%emt 0:00:30]} 10. Be3 {[%emt 0:01:30]} a6 {[%emt 0:00:30]} 11. Re1 {[%emt 0:02:30]} b5 {[%emt 0:00:30]} 12. Nb3 {[%emt 0:07:30]} b4 {[%emt 0:03:30]} 13. Nfd2 {[%emt 0:07:30]} bxc3 {[%emt 0:00:30]} 14. bxc3 {[%emt 0:00:30]} e5 {[%emt 0:11:30]} 15. Rc1 {[%emt 0:09:30]} e4 {[%emt 0:03:30]} 16. Nxe4 {[%emt 0:07:30]} dxe4 {[%emt 0:01:30]} 17. Bxe4 {[%emt 0:00:30]} Bd7 {[%emt 0:07:30]} 18. Nc5 {[%emt 0:05:30]} Re8 {[%emt 0:26:30]} 19. Qf3 {[%emt 0:07:30]} Rxe4 {[%emt 0:08:30]} 20. Qxe4 {[%emt 0:02:30]} Nf6 {[%emt 0:00:30]} 21. Qf3 {[%emt 0:02:30]} h6 {[%emt 0:03:30]} 22. Rb1 {[%emt 0:03:30]} Na5 {[%emt 0:15:12]} 23. Nb7 {[%emt 0:05:30]} Nxb7 {[%emt 0:00:36]} 24. Qxb7 {[%emt 0:00:30]} Be6 {[%emt 0:00:51]} 25. Qb2 {[%emt 0:02:30]} Qd6 {[%emt 0:01:28]} 26. f3 {[%emt 0:02:30]} Nd5 {[%emt 0:01:09]} 27. Bf2 {[%emt 0:00:30]} Rc8 {[%emt 0:01:44]} 28. Rbc1 {[%emt 0:01:30]} Nb6 {[%emt 0:03:09]} 29. Red1 {[%emt 0:04:30]} Bd5 {[%emt 0:00:41]} 30. a3 {[%emt 0:01:30]} Nc4 {[%emt 0:00:48]} 31. Qb4 {[%emt 0:00:30]} Qc6 {[%emt 0:00:42]} 32. Qc5 {[%emt 0:01:30]} Bf8 {[%emt 0:01:21]} 33. Qxc6 {[%emt 0:00:30]} Rxc6 {[%emt 0:00:04]} 34. Bg3 {[%emt 0:00:30]} Bxa3 {[%emt 0:00:42]} 35. Rb1 {[%emt 0:00:30]} Bd6 {[%emt 0:00:36]} 36. Bf2 {[%emt 0:00:30]} Na3 {[%emt 0:00:54]} 37. Rbc1 {[%emt 0:00:30]} a5 {[%emt 0:01:05]} 38. Re1 {[%emt 0:00:30]} Kf8 {[%emt 0:00:46]} 39. Re2 {[%emt 0:00:00]} a4 {[%emt 0:00:12]} 40. Ra1 {[%emt 0:00:00]} Bb3 {[%emt 0:00:40]} 41. Rb2 {[%emt 0:00:30]} Rxc3 {[%emt 0:01:01]} 42. Kf1 {[%emt 0:00:30]} Nc2 {[%emt 0:00:34]} 43. Rab1 {[%emt 0:00:00]} Ba3 {[%emt 0:00:19]} 0-1

[Event "Turkish Club Cup 2019"]
[Site "Konya"]
[Date "2019.07.18"]
[Round "4"]
[White "Yignak, Havva Deniz"]
[Black "Gul, Zeynep"]
[Result "0-1"]
[ECO "D50"]
[WhiteElo "1219"]
[BlackElo "1359"]
[Annotator "NA RC"]
[PlyCount "128"]
[EventDate "2019.07.16"]
[EventType "team-tourn"]
[EventCountry "TUR"]
[SourceTitle "playchess.com"]
[Source "ChessBase"]
[SourceQuality "1"]
[TimeControl "5400+30"]

1. d4 {[%emt 0:00:30]} d5 {[%emt 0:00:30]} 2. c4 {[%emt 0:00:00]} dxc4 {[%emt 0:00:30]} 3. e4 {[%emt 0:00:00]} Nf6 {[%emt 0:00:00]} 4. Nc3 {[%emt 0:00:30]} e6 {[%emt 0:00:00]} 5. Bg5 {[%emt 0:02:30]} h6 {[%emt 0:01:30]} 6. Bxf6 {[%emt 0:02:30]} Qxf6 {[%emt 0:00:30]} 7. a3 {[%emt 0:04:30]} Qd8 {[%emt 0:04:30]} 8. Bxc4 {[%emt 0:03:30]} c5 {[%emt 0:01:30]} 9. d5 {[%emt 0:05:30]} exd5 {[%emt 0:03:30]} 10. Bxd5 {[%emt 0:02:30]} Bd6 {[%emt 0:08:30]} 11. Qb3 {[%emt 0:09:30]} Qe7 {[%emt 0:04:30]} 12. Rd1 {[%emt 0:14:30]} O-O {[%emt 0:04:30]} 13. Nge2 {[%emt 0:07:30]} a6 {[%emt 0:15:30]} 14. Na4 {[%emt 0:10:30]} Nd7 {[%emt 0:03:30]} 15. Bxb7 {[%emt 0:01:30]} Rb8 {[%emt 0:00:30]} 16. Qd5 {[%emt 0:01:30]} Rxb7 {[%emt 0:05:30]} 17. Qxd6 {[%emt 0:00:30]} Qxe4 {[%emt 0:00:30]} 18. Nxc5 {[%emt 0:09:30]} Nxc5 {[%emt 0:01:30]} 19. Qxc5 {[%emt 0:00:30]} Rxb2 {[%emt 0:01:30]} 20. Qe3 {[%emt 0:02:30]} Qxe3 {[%emt 0:01:30]} 21. fxe3 {[%emt 0:00:00]} Bg4 {[%emt 0:00:30]} 22. Rd2 {[%emt 0:01:00]} Rb1+ {[%emt 0:00:30]} 23. Rd1 {[%emt 0:00:00]} Rxd1+ {[%emt 0:00:30]} 24. Kxd1 {[%emt 0:00:00]} Rb8 {[%emt 0:00:30]} 25. Re1 {[%emt 0:01:30]} Rb1+ {[%emt 0:00:30]} 26. Kd2 {[%emt 0:00:30]} Rb2+ {[%emt 0:00:30]} 27. Kd3 {[%emt 0:02:29]} Bxe2+ {[%emt 0:02:30]} 28. Rxe2 {[%emt 0:00:01]} Rb3+ {[%emt 0:00:00]} 29. Kc4 {[%emt 0:00:23]} Rxa3 {[%emt 0:00:00]} 30. Kb4 {[%emt 0:00:39]} Ra1 {[%emt 0:00:30]} 31. Kb3 {[%emt 0:04:38]} Kh7 {[%emt 0:02:30]} 32. Kb2 {[%emt 0:00:43]} Ra5 {[%emt 0:00:30]} 33. Rc2 {[%emt 0:03:29]} Rb5+ {[%emt 0:01:30]} 34. Ka3 {[%emt 0:00:24]} Rd5 {[%emt 0:01:30]} 35. Ka4 {[%emt 0:02:55]} Rd6 {[%emt 0:02:30]} 36. Kb4 {[%emt 0:03:35]} Re6 37. Re2 {[%emt 0:00:35]} Re5 {[%emt 0:03:00]} 38. Ka4 {[%emt 0:00:47]} Kg6 {[%emt 0:00:30]} 39. Kb4 {[%emt 0:01:14]} f6 {[%emt 0:02:30]} 40. Kc4 {[%emt 0:00:30]} a5 {[%emt 0:00:30]} 41. Kd4 {[%emt 0:00:42]} a4 {[%emt 0:00:30]} 42. Ra2 {[%emt 0:00:24]} Ra5 {[%emt 0:00:30]} 43. e4 {[%emt 0:01:21]} a3 {[%emt 0:01:30]} 44. h3 {[%emt 0:01:40]} Kf7 {[%emt 0:00:30]} 45. g3 {[%emt 0:01:26]} Ke6 {[%emt 0:00:00]} 46. g4 {[%emt 0:00:14]} Ra4+ {[%emt 0:00:00]} 47. Ke3 {[%emt 0:01:03]} Ke5 {[%emt 0:00:30]} 48. Kd3 {[%emt 0:00:29]} Kf4 {[%emt 0:02:30]} 49. Rf2+ {[%emt 0:01:10]} Kg3 {[%emt 0:00:30]} 50. Ra2 {[%emt 0:00:18]} Kxh3 {[%emt 0:00:00]} 51. Kc3 {[%emt 0:00:36]} Rxe4 {[%emt 0:00:00]} 52. Ra1 {[%emt 0:00:43]} Rxg4 {[%emt 0:00:30]} 53. Rh1+ {[%emt 0:00:30]} Kg3 {[%emt 0:00:30]} 54. Rg1+ {[%emt 0:00:00]} Kf4 {[%emt 0:00:30]} 55. Rf1+ {[%emt 0:00:00]} Kg5 {[%emt 0:00:00]} 56. Rf3 {[%emt 0:00:56]} a2 {[%emt 0:00:00]} 57. Kb2 {[%emt 0:00:22]} Rg2+ {[%emt 0:00:30]} 58. Ka1 {[%emt 0:00:30]} h5 {[%emt 0:00:00]} 59. Ra3 {[%emt 0:00:18]} f5 {[%emt 0:00:00]} 60. Ra5 {[%emt 0:00:31]} Kg4 {[%emt 0:00:30]} 61. Ra4+ {[%emt 0:00:35]} f4 {[%emt 0:00:30]} 62. Ra7 {[%emt 0:00:00]} g5 {[%emt 0:00:00]} 63. Ra4 {[%emt 0:00:28]} h4 {[%emt 0:00:00]} 64. Rc4 {[%emt 0:01:15]} h3 {[%emt 0:00:30]} 0-1

[Event "Turkish Club Cup 2019"]
[Site "Konya"]
[Date "2019.07.18"]
[Round "4"]
[White "Cingoz, Isil"]
[Black "Kocyigit, Buse Naz"]
[Result "0-1"]
[ECO "C02"]
[WhiteElo "1123"]
[BlackElo "2045"]
[Annotator "NA"]
[PlyCount "54"]
[EventDate "2019.07.16"]
[EventType "team-tourn"]
[EventCountry "TUR"]
[SourceTitle "playchess.com"]
[Source "ChessBase"]
[SourceQuality "1"]
[TimeControl "5400+30"]

1. e4 {[%emt 0:00:30]} c5 {[%emt 0:00:30]} 2. c3 {[%emt 0:00:00]} d5 {[%emt 0:00:30]} 3. e5 {[%emt 0:01:00]} e6 {[%emt 0:00:30]} 4. d4 {[%emt 0:00:30]} Nc6 {[%emt 0:00:30]} 5. Be3 {[%emt 0:01:30]} Nge7 {[%emt 0:04:30]} 6. f4 {[%emt 0:02:30]} cxd4 {[%emt 0:04:30]} 7. cxd4 {[%emt 0:00:30]} Nf5 {[%emt 0:00:30]} 8. Bf2 {[%emt 0:01:30]} Qb6 {[%emt 0:10:30]} 9. Nc3 {[%emt 0:07:30]} Nfxd4 {[%emt 0:13:30]} 10. Bb5 {[%emt 0:04:30]} Bc5 {[%emt 0:01:30]} 11. Nge2 {[%emt 0:02:30]} Nxb5 {[%emt 0:02:30]} 12. Bxc5 {[%emt 0:01:30]} Qxc5 {[%emt 0:00:30]} 13. Rc1 {[%emt 0:01:30]} Nxc3 {[%emt 0:01:30]} 14. Rxc3 {[%emt 0:00:30]} Qb6 {[%emt 0:00:00]} 15. Qc2 {[%emt 0:00:30]} Bd7 {[%emt 0:01:00]} 16. Rb3 {[%emt 0:01:30]} Qa5+ {[%emt 0:02:30]} 17. Kf2 {[%emt 0:00:30]} Rc8 {[%emt 0:01:30]} 18. Rc1 {[%emt 0:03:30]} Ne7 {[%emt 0:19:30]} 19. Qb1 {[%emt 0:04:30]} b5 {[%emt 0:04:30]} 20. Rcc3 {[%emt 0:08:30]} Rxc3 {[%emt 0:01:30]} 21. Nxc3 {[%emt 0:00:00]} b4 {[%emt 0:00:30]} 22. Ne2 {[%emt 0:00:00]} Qb6+ {[%emt 0:00:30]} 23. Kg3 {[%emt 0:02:30]} Nf5+ {[%emt 0:00:30]} 24. Kh3 {[%emt 0:00:30]} Qf2 {[%emt 0:00:30]} 25. Ng3 {[%emt 0:01:30]} Qxf4 {[%emt 0:00:30]} 26. Nxf5 {[%emt 0:00:00]} exf5 {[%emt 0:00:30]} 27. Qe1 {[%emt 0:01:00]} Qg4# {[%emt 0:00:30]} 0-1

[Event "Turkish Club Cup 2019"]
[Site "Konya"]
[Date "2019.07.18"]
[Round "4"]
[White "Zeybek, Merve"]
[Black "Yaman, Sila"]
[Result "0-1"]
[ECO "B18"]
[WhiteElo "1121"]
[BlackElo "1381"]
[Annotator "NA RC"]
[PlyCount "55"]
[EventDate "2019.07.16"]
[EventType "team-tourn"]
[EventCountry "TUR"]
[SourceTitle "playchess.com"]
[Source "ChessBase"]
[SourceQuality "1"]
[TimeControl "5400+30"]

1. e4 {[%emt 0:00:30]} c6 {[%emt 0:00:30]} 2. Nc3 {[%emt 0:00:30]} d5 {[%emt 0:00:30]} 3. d4 {[%emt 0:00:30]} dxe4 {[%emt 0:00:00]} 4. Nxe4 {[%emt 0:00:30]} Bf5 {[%emt 0:00:00]} 5. f3 {[%emt 0:02:30]} Nd7 {[%emt 0:04:30]} 6. Be3 {[%emt 0:02:30]} Ngf6 {[%emt 0:01:30]} 7. Bd3 {[%emt 0:00:30]} Bg6 {[%emt 0:01:30]} 8. c4 {[%emt 0:07:30]} e5 {[%emt 0:02:30]} 9. a3 {[%emt 0:01:30]} Be7 {[%emt 0:02:30]} 10. Ne2 {[%emt 0:00:30]} O-O {[%emt 0:03:30]} 11. O-O {[%emt 0:01:30]} Nxe4 {[%emt 0:07:30]} 12. Bxe4 {[%emt 0:04:30]} f5 {[%emt 0:02:30]} 13. Bc2 {[%emt 0:01:30]} Qc7 {[%emt 0:13:30]} 14. dxe5 {[%emt 0:04:30]} Nxe5 {[%emt 0:00:30]} 15. Bf4 {[%emt 0:13:30]} Qb6+ {[%emt 0:05:30]} 16. Kh1 {[%emt 0:01:30]} Nxc4 {[%emt 0:06:30]} 17. Bb3 {[%emt 0:05:30]} Bf7 {[%emt 0:02:30]} 18. Ng3 {[%emt 0:04:30]} Bf6 {[%emt 0:04:30]} 19. Bxc4 {[%emt 0:05:30]} Bxc4 {[%emt 0:00:30]} 20. Re1 {[%emt 0:00:30]} Rad8 {[%emt 0:01:30]} 21. Qc2 {[%emt 0:01:30]} Bd3 {[%emt 0:00:30]} 22. Qa4 {[%emt 0:01:30]} Rd4 {[%emt 0:03:30]} 23. Qd1 {[%emt 0:00:30]} Qxb2 {[%emt 0:02:30]} 24. Nh5 {[%emt 0:00:30]} Bc4 {[%emt 0:05:30]} 25. Qa4 {[%emt 0:01:30]} Bf7 {[%emt 0:02:30]} 26. Nxf6+ {[%emt 0:02:30]} gxf6 {[%emt 0:00:30]} 27. Bc1 {[%emt 0:00:30]} Qxa1 {[%emt 0:00:30]} 28. Qd1 {[%emt 0:00:30]} 0-1

[Event "Turkish Club Cup 2019"]
[Site "Konya"]
[Date "2019.07.18"]
[Round "5"]
[White "Guven, Oguz Kagan"]
[Black "Guder, Eyup Sabri"]
[Result "1/2-1/2"]
[ECO "B22"]
[WhiteElo "2142"]
[BlackElo "1909"]
[Annotator "NA"]
[PlyCount "95"]
[EventDate "2019.07.16"]
[EventType "team-tourn"]
[EventCountry "TUR"]
[SourceTitle "playchess.com"]
[Source "ChessBase"]
[SourceQuality "1"]
[TimeControl "5400+30"]

1. e4 {[%emt 0:00:30]} c5 {[%emt 0:00:30]} 2. Nf3 {[%emt 0:00:30]} e6 {[%emt 0:00:00]} 3. c3 {[%emt 0:00:00]} Nf6 {[%emt 0:01:00]} 4. e5 {[%emt 0:00:00]} Nd5 {[%emt 0:00:30]} 5. d4 {[%emt 0:00:30]} cxd4 {[%emt 0:00:30]} 6. cxd4 {[%emt 0:00:00]} b6 {[%emt 0:00:00]} 7. Bd2 {[%emt 0:07:00]} Ba6 {[%emt 0:01:00]} 8. Bxa6 {[%emt 0:00:30]} Nxa6 {[%emt 0:00:00]} 9. O-O {[%emt 0:00:30]} Be7 {[%emt 0:00:00]} 10. Nc3 {[%emt 0:00:30]} Nac7 {[%emt 0:00:30]} 11. Ne4 {[%emt 0:00:30]} O-O {[%emt 0:00:30]} 12. Rc1 {[%emt 0:13:30]} f5 {[%emt 0:02:30]} 13. exf6 {[%emt 0:00:30]} Nxf6 {[%emt 0:00:30]} 14. Nxf6+ {[%emt 0:07:30]} Bxf6 {[%emt 0:05:30]} 15. Bb4 {[%emt 0:01:30]} Rf7 {[%emt 0:01:30]} 16. Bd6 {[%emt 0:00:30]} Nd5 {[%emt 0:01:30]} 17. Qd3 {[%emt 0:05:30]} a5 {[%emt 0:07:30]} 18. a4 {[%emt 0:14:30]} Be7 {[%emt 0:05:30]} 19. Bg3 {[%emt 0:00:30]} Bg5 {[%emt 0:08:30]} 20. Rc4 {[%emt 0:14:30]} Bf4 {[%emt 0:02:30]} 21. Qc2 {[%emt 0:05:30]} Nb4 {[%emt 0:12:30]} 22. Qe2 {[%emt 0:00:30]} Rc8 {[%emt 0:01:30]} 23. Bxf4 {[%emt 0:03:30]} Rxc4 {[%emt 0:01:30]} 24. Qxc4 {[%emt 0:00:30]} Rxf4 {[%emt 0:00:30]} 25. Rc1 {[%emt 0:00:30]} h6 {[%emt 0:05:30]} 26. Qc7 {[%emt 0:03:38]} Qxc7 {[%emt 0:06:30]} 27. Rxc7 {[%emt 0:00:22]} d6 {[%emt 0:08:30]} 28. Rb7 {[%emt 0:03:15]} Nc2 {[%emt 0:01:30]} 29. Rxb6 {[%emt 0:01:19]} Nxd4 {[%emt 0:00:00]} 30. Rxd6 {[%emt 0:01:02]} Nxf3+ {[%emt 0:00:00]} 31. gxf3 {[%emt 0:00:30]} Rxa4 {[%emt 0:00:30]} 32. Rxe6 {[%emt 0:00:00]} Rb4 {[%emt 0:00:30]} 33. Ra6 {[%emt 0:00:01]} a4 {[%emt 0:01:30]} 34. Kg2 {[%emt 0:00:18]} Kh7 {[%emt 0:00:30]} 35. Kg3 {[%emt 0:00:40]} h5 {[%emt 0:00:30]} 36. f4 {[%emt 0:06:18]} g6 {[%emt 0:06:40]} 37. Ra7+ {[%emt 0:03:51]} Kh6 {[%emt 0:00:30]} 38. Ra6 {[%emt 0:00:30]} Kh7 {[%emt 0:00:30]} 39. f3 {[%emt 0:00:00]} Kg7 {[%emt 0:00:20]} 40. h3 {[%emt 0:01:48]} Kf7 {[%emt 0:00:30]} 41. Ra8 {[%emt 0:04:27]} Kf6 {[%emt 0:00:00]} 42. Ra5 {[%emt 0:00:20]} Kg7 {[%emt 0:01:37]} 43. Kh4 {[%emt 0:01:25]} Rxf4+ {[%emt 0:03:30]} 44. Kg5 {[%emt 0:00:31]} Rxf3 {[%emt 0:00:07]} 45. Ra7+ {[%emt 0:00:28]} Rf7 {[%emt 0:00:30]} 46. Rxa4 {[%emt 0:00:00]} Rf5+ {[%emt 0:06:29]} 47. Kh4 {[%emt 0:00:00]} Rb5 {[%emt 0:00:13]} 48. b4 {[%emt 0:00:46]} 1/2-1/2

[Event "Turkish Club Cup 2019"]
[Site "Konya"]
[Date "2019.07.18"]
[Round "5"]
[White "Kesgin, Halit Kaan"]
[Black "Taskiran, Recep"]
[Result "1/2-1/2"]
[ECO "B51"]
[WhiteElo "2104"]
[BlackElo "1898"]
[Annotator "NA"]
[PlyCount "77"]
[EventDate "2019.07.16"]
[EventType "team-tourn"]
[EventCountry "TUR"]
[SourceTitle "playchess.com"]
[Source "ChessBase"]
[SourceQuality "1"]
[TimeControl "5400+30"]

1. e4 {[%emt 0:00:30]} c5 {[%emt 0:00:30]} 2. Nf3 {[%emt 0:00:00]} d6 {[%emt 0:00:00]} 3. Bb5+ {[%emt 0:00:00]} Nd7 {[%emt 0:00:00]} 4. O-O {[%emt 0:00:30]} Ngf6 {[%emt 0:00:00]} 5. Re1 {[%emt 0:00:30]} a6 {[%emt 0:00:00]} 6. Bf1 {[%emt 0:00:30]} Ne5 {[%emt 0:01:30]} 7. Nxe5 {[%emt 0:07:30]} dxe5 {[%emt 0:00:30]} 8. a4 {[%emt 0:01:30]} Bg4 {[%emt 0:01:30]} 9. Be2 {[%emt 0:02:30]} Bd7 {[%emt 0:00:30]} 10. d3 {[%emt 0:02:30]} e6 {[%emt 0:02:30]} 11. a5 {[%emt 0:07:30]} Qc7 {[%emt 0:02:30]} 12. Nd2 {[%emt 0:01:30]} Bb5 {[%emt 0:00:30]} 13. b3 {[%emt 0:01:30]} Rd8 {[%emt 0:03:30]} 14. Bb2 {[%emt 0:01:30]} Be7 {[%emt 0:01:30]} 15. Bc3 {[%emt 0:02:30]} O-O {[%emt 0:02:30]} 16. Qc1 {[%emt 0:02:30]} Nd7 {[%emt 0:00:30]} 17. Nc4 {[%emt 0:04:30]} Rfe8 {[%emt 0:06:30]} 18. Qb2 {[%emt 0:02:30]} f6 {[%emt 0:00:30]} 19. Bh5 {[%emt 0:00:30]} g6 {[%emt 0:06:30]} 20. Bg4 {[%emt 0:00:30]} Kf7 {[%emt 0:00:30]} 21. Rf1 {[%emt 0:06:30]} h5 {[%emt 0:01:30]} 22. Be2 {[%emt 0:00:30]} Rh8 {[%emt 0:00:30]} 23. h4 {[%emt 0:07:30]} Rdg8 {[%emt 0:01:30]} 24. Bd2 {[%emt 0:03:30]} f5 {[%emt 0:12:30]} 25. Bc3 {[%emt 0:03:30]} Bxc4 {[%emt 0:03:30]} 26. bxc4 {[%emt 0:00:00]} Bxh4 {[%emt 0:04:30]} 27. Rab1 {[%emt 0:02:00]} Rb8 {[%emt 0:00:30]} 28. exf5 {[%emt 0:05:30]} gxf5 {[%emt 0:01:30]} 29. f4 {[%emt 0:01:30]} Bg3 {[%emt 0:05:30]} 30. fxe5 {[%emt 0:00:30]} Qd8 {[%emt 0:09:30]} 31. Bf3 {[%emt 0:03:30]} Qh4 {[%emt 0:00:30]} 32. Rfd1 {[%emt 0:01:30]} Qh2+ {[%emt 0:10:30]} 33. Kf1 {[%emt 0:00:00]} Nxe5 {[%emt 0:01:30]} 34. Bxe5 {[%emt 0:01:00]} Bxe5 {[%emt 0:00:00]} 35. c3 {[%emt 0:00:30]} Rhg8 {[%emt 0:02:00]} 36. d4 {[%emt 0:01:30]} Bf4 {[%emt 0:00:53]} 37. Qf2 {[%emt 0:01:30]} Bg3 {[%emt 0:01:01]} 38. Qe3 {[%emt 0:00:30]} Bf4 {[%emt 0:01:00]} 39. Qf2 {[%emt 0:00:30]} 1/2-1/2

[Event "Turkish Club Cup 2019"]
[Site "Konya"]
[Date "2019.07.18"]
[Round "5"]
[White "Gulsoy, Mustafa Alpago"]
[Black "Iyiol, Mehmet"]
[Result "0-1"]
[ECO "C02"]
[WhiteElo "2069"]
[BlackElo "1857"]
[Annotator "NA"]
[PlyCount "58"]
[EventDate "2019.07.16"]
[EventType "team-tourn"]
[EventCountry "TUR"]
[SourceTitle "playchess.com"]
[Source "ChessBase"]
[SourceQuality "1"]
[TimeControl "5400+30"]

1. e4 {[%emt 0:00:30]} e6 {[%emt 0:00:30]} 2. d4 {[%emt 0:00:30]} d5 {[%emt 0:00:30]} 3. e5 {[%emt 0:00:30]} c5 {[%emt 0:00:30]} 4. c3 {[%emt 0:00:30]} Nc6 {[%emt 0:00:30]} 5. Nf3 {[%emt 0:00:30]} Qb6 {[%emt 0:00:30]} 6. Na3 {[%emt 0:00:30]} cxd4 {[%emt 0:00:30]} 7. cxd4 {[%emt 0:00:30]} Bb4+ {[%emt 0:00:00]} 8. Bd2 {[%emt 0:00:00]} Bd7 {[%emt 0:00:00]} 9. Bxb4 {[%emt 0:01:00]} Qxb4+ {[%emt 0:00:00]} 10. Qd2 {[%emt 0:00:00]} Qxd2+ {[%emt 0:02:00]} 11. Kxd2 {[%emt 0:00:00]} a6 {[%emt 0:00:30]} 12. Nc2 {[%emt 0:05:30]} Nge7 {[%emt 0:00:30]} 13. Bd3 {[%emt 0:03:30]} O-O {[%emt 0:00:30]} 14. Nh4 {[%emt 0:06:30]} f6 {[%emt 0:01:30]} 15. f4 {[%emt 0:00:00]} fxe5 {[%emt 0:03:30]} 16. fxe5 {[%emt 0:04:00]} g5 {[%emt 0:09:30]} 17. Nf3 {[%emt 0:00:00]} h6 {[%emt 0:00:30]} 18. Rhf1 {[%emt 0:01:00]} Kg7 {[%emt 0:02:30]} 19. Ke2 {[%emt 0:05:30]} Be8 {[%emt 0:02:30]} 20. b4 {[%emt 0:05:30]} Bg6 {[%emt 0:03:30]} 21. Nd2 {[%emt 0:00:30]} Nf5 {[%emt 0:02:30]} 22. Nb3 {[%emt 0:00:30]} b6 {[%emt 0:03:30]} 23. a4 {[%emt 0:01:30]} a5 {[%emt 0:01:30]} 24. bxa5 {[%emt 0:01:30]} Nxa5 {[%emt 0:00:30]} 25. Nxa5 {[%emt 0:00:30]} bxa5 {[%emt 0:02:30]} 26. Rab1 {[%emt 0:00:30]} Rab8 {[%emt 0:01:30]} 27. Rb5 {[%emt 0:10:30]} Ng3+ {[%emt 0:10:30]} 28. hxg3 {[%emt 0:00:30]} Bxd3+ {[%emt 0:00:30]} 29. Kxd3 {[%emt 0:00:30]} Rxb5 {[%emt 0:00:00]} 0-1

[Event "Turkish Club Cup 2019"]
[Site "Konya"]
[Date "2019.07.18"]
[Round "5"]
[White "Mecit, Emre"]
[Black "Ererdem, Gani Eren"]
[Result "1/2-1/2"]
[ECO "D94"]
[WhiteElo "2065"]
[BlackElo "2140"]
[Annotator "NA"]
[PlyCount "85"]
[EventDate "2019.07.16"]
[EventType "team-tourn"]
[EventCountry "TUR"]
[SourceTitle "playchess.com"]
[Source "ChessBase"]
[SourceQuality "1"]
[TimeControl "5400+30"]

1. e4 {[%emt 0:00:30]} g6 {[%emt 0:00:30]} 2. d4 {[%emt 0:00:30]} Bg7 {[%emt 0:00:30]} 3. Nf3 {[%emt 0:00:30]} c6 {[%emt 0:00:30]} 4. c4 {[%emt 0:00:00]} d5 {[%emt 0:07:30]} 5. exd5 {[%emt 0:00:00]} cxd5 {[%emt 0:00:30]} 6. Nc3 {[%emt 0:00:00]} Nf6 {[%emt 0:00:00]} 7. Be2 {[%emt 0:00:00]} O-O {[%emt 0:00:00]} 8. O-O {[%emt 0:00:30]} b6 {[%emt 0:06:30]} 9. Ne5 {[%emt 0:02:30]} Bb7 {[%emt 0:00:30]} 10. Bf3 {[%emt 0:01:30]} e6 {[%emt 0:12:30]} 11. Bg5 {[%emt 0:01:30]} h6 {[%emt 0:05:30]} 12. cxd5 {[%emt 0:03:30]} exd5 {[%emt 0:03:30]} 13. Bh4 {[%emt 0:03:30]} g5 {[%emt 0:02:30]} 14. Bg3 {[%emt 0:00:00]} Ne4 {[%emt 0:01:30]} 15. Bxe4 {[%emt 0:11:00]} dxe4 {[%emt 0:03:30]} 16. Qb3 {[%emt 0:00:30]} Nd7 {[%emt 0:05:30]} 17. Rfe1 {[%emt 0:01:30]} Nf6 {[%emt 0:07:30]} 18. Rad1 {[%emt 0:04:30]} Bd5 {[%emt 0:02:30]} 19. Nxd5 {[%emt 0:00:30]} Qxd5 {[%emt 0:00:30]} 20. Ng4 {[%emt 0:08:30]} Rad8 {[%emt 0:03:30]} 21. Nxf6+ {[%emt 0:08:30]} Bxf6 {[%emt 0:00:00]} 22. Qxd5 {[%emt 0:00:30]} Rxd5 {[%emt 0:00:00]} 23. Rxe4 {[%emt 0:00:00]} Rc8 {[%emt 0:03:30]} 24. Be5 {[%emt 0:02:00]} Bxe5 {[%emt 0:00:30]} 25. Rxe5 {[%emt 0:00:30]} Rxd4 {[%emt 0:00:00]} 26. Ree1 {[%emt 0:01:30]} Rxd1 {[%emt 0:00:00]} 27. Rxd1 {[%emt 0:00:30]} Rc2 {[%emt 0:00:30]} 28. Rb1 {[%emt 0:00:00]} b5 {[%emt 0:05:30]} 29. a3 {[%emt 0:00:00]} h5 {[%emt 0:02:30]} 30. g3 {[%emt 0:00:30]} f6 {[%emt 0:04:30]} 31. b3 {[%emt 0:07:30]} Ra2 {[%emt 0:03:56]} 32. a4 {[%emt 0:00:30]} bxa4 {[%emt 0:00:22]} 33. bxa4 {[%emt 0:00:30]} Rxa4 {[%emt 0:00:30]} 34. Rb7 {[%emt 0:00:30]} a5 {[%emt 0:00:12]} 35. Ra7 {[%emt 0:00:00]} g4 {[%emt 0:01:43]} 36. Kg2 {[%emt 0:00:00]} Ra2 {[%emt 0:00:29]} 37. Kg1 {[%emt 0:00:00]} a4 {[%emt 0:01:14]} 38. Ra5 {[%emt 0:01:00]} a3 {[%emt 0:00:36]} 39. Kg2 {[%emt 0:00:30]} Kf7 {[%emt 0:00:02]} 40. h4 {[%emt 0:00:30]} gxh3+ {[%emt 0:01:54]} 41. Kxh3 {[%emt 0:00:30]} Ra1 {[%emt 0:05:43]} 42. Kg2 {[%emt 0:00:30]} a2 {[%emt 0:00:01]} 43. Kf3 {[%emt 0:00:30]} 1/2-1/2